bitfinex-derivatives/quotes_SOLF0:USTF0_20251026
["timestamp","ask_amount","ask_price","bid_price","bid_amount"]
[1761495365506,2.81,198.53,198.44,2.75]
[1761495366194,2.81,198.53,198.44,7.285]
[1761495366408,2.81,198.53,198.45,2.75]
[1761495367197,0.03293518,198.5,198.45,2.75]
[1761495369106,2.81293518,198.5,198.45,2.75]
[1761495372208,2.81293518,198.5,198.44,4.535]
[1761495372405,2.81293518,198.5,198.38,2.58]
[1761495372611,2.81293518,198.5,198.4,2.58]
[1761495373116,2.78,198.48,198.4,2.58]
[1761495374208,2.78,198.48,198.4,7.1161]
[1761495374414,3.63985598,198.5,198.41,2.58]
[1761495374606,2.78,198.5,198.41,2.58]
[1761495375612,4.62566432,198.56,198.36,0.87706034]
[1761495375804,3.63977748,198.5,198.36,0.87706034]
[1761495376005,2.78,198.48,198.32,64.02]
[1761495376217,2.81225337,198.47,198.33,2.58]
[1761495376515,2.78,198.46,198.33,2.58]
[1761495376715,2.78,198.45,198.33,2.58]
[1761495376914,2.78,198.44,198.33,2.58]
[1761495378112,2.78,198.44,198.34,2.58]
[1761495378710,0.03385678,198.4,198.34,2.58]
[1761495382019,0.03385678,198.4,198.36,2.58]
[1761495383021,2.81385678,198.4,198.36,2.58]
[1761495383231,2.81385678,198.4,198.33,2.58]
[1761495383917,2.81385678,198.4,198.31,61.46]
[1761495384118,2.81385678,198.4,198.3,2.58]
[1761495385913,2.78,198.39,198.3,2.58]
[1761495386626,2.78,198.39,198.29,61.46]
[1761495387824,2.78,198.37,198.27,2.58]
[1761495388316,4.5375,198.34,198.25,61.46]
[1761495388523,2.78,198.33,198.25,61.46]
[1761495389718,0.03281224,198.31,198.25,61.46]
[1761495390216,2.81281224,198.31,198.26,2.58]
[1761495390715,0.03281224,198.31,198.26,2.58]
[1761495391520,0.03281224,198.31,198.27,2.58]
[1761495395420,2.78,198.3,198.26,4.5391]
[1761495395720,0.03281224,198.31,198.26,2.58]
[1761495397513,0.03281224,198.31,198.25,7.1194]
[1761495397719,2.81281224,198.31,198.27,2.58]
[1761495397919,0.03281224,198.31,198.27,2.58]
[1761495398125,0.03281224,198.31,198.28,61.5]
[1761495398329,0.03281224,198.31,198.29,2.58]
[1761495401435,2.77,198.38,198.3,2.62]
[1761495402939,2.77,198.38,198.32,0.03207563]
[1761495403130,2.77,198.38,198.33,61.5]
[1761495403634,2.77,198.38,198.33,6.59]
[1761495403834,2.77,198.37,198.33,68.09]
[1761495404536,2.77,198.37,198.33,70.71]
[1761495405034,2.77,198.45,198.34,2.62]
[1761495405225,2.77,198.44,198.34,2.62]
[1761495405424,4.5361,198.41,198.34,2.62]
[1761495405629,2.77,198.4,198.34,2.62]
[1761495406030,2.77,198.4,198.33,68.09]
[1761495406830,2.77,198.39,198.33,68.09]
[1761495407030,2.77,198.39,198.33,6.59]
[1761495407235,2.77,198.38,198.33,6.59]
[1761495408938,4.5375,198.35,198.33,6.59]
[1761495409137,2.77,198.34,198.33,6.59]
[1761495409635,3.77,198.34,198.33,6.59]
[1761495413237,6.6947641,198.34,198.33,6.59]
[1761495414042,2.77,198.34,198.33,6.59]
[1761495414944,4.5375,198.35,198.33,6.59]
[1761495415943,4.5375,198.35,198.33,9.21]
[1761495416843,4.5375,198.35,198.33,6.59]
[1761495418129,3.93483031,198.34,198.33,6.59]
[1761495418443,6.70483031,198.34,198.33,6.59]
[1761495419341,3.93483031,198.34,198.33,6.59]
[1761495420329,6.70483031,198.34,198.33,6.59]
[1761495421540,3.93483031,198.34,198.33,6.59]
[1761495421741,3.93483031,198.34,198.33,9.21]
[1761495421933,4.5369,198.37,198.33,9.21]
[1761495422131,4.5369,198.37,198.34,2.68]
[1761495422938,2.57,198.41,198.34,2.68]
[1761495423943,7.106,198.41,198.34,2.68]
[1761495424642,7.106,198.41,198.36,2.71290379]
[1761495425631,2.57,198.4,198.37,7.44]
[1761495426044,2.57,198.39,198.37,4.76]
[1761495427041,8.00260968,198.43,198.37,4.76]
[1761495427042,7.1066,198.38,198.37,4.76]
[1761495427241,10.88269243,198.38,198.37,4.76]
[1761495428939,7.2177,198.34,198.3,2.68]
[1761495429445,4.5377,198.34,198.3,2.68]
[1761495429742,4.5371,198.36,198.3,2.68]
[1761495429939,7.30566432,198.4,198.3,2.68]
[1761495430242,3.77885325,198.39,198.3,2.68]
[1761495430439,4.537,198.37,198.3,2.68]
[1761495430638,6.45893405,198.36,198.3,2.68]
[1761495431244,6.45893405,198.35,198.3,2.68]
[1761495431444,2.68,198.35,198.3,2.68]
[1761495431644,7.2175,198.34,198.3,2.68]
[1761495431945,2.68,198.33,198.3,2.68]
[1761495432941,2.68,198.33,198.28,4.97]
[1761495433250,2.68,198.38,198.28,2.12]
[1761495433437,4.62566432,198.34,198.28,2.12]
[1761495433643,2.68,198.32,198.28,2.12]
[1761495433843,2.68,198.32,198.28,4.97]
[1761495434639,2.68,198.32,198.29,2.85]
[1761495434640,3.7807619,198.32,198.29,2.85]
[1761495434844,7.2178,198.33,198.29,2.85]
[1761495435243,2.68,198.34,198.28,2.12]
[1761495435448,6.4599163,198.34,198.28,2.12]
[1761495435647,6.4599163,198.34,198.28,4.97]
[1761495435847,0.03351262,198.35,198.29,2.85]
[1761495436251,6.4610935,198.34,198.28,2.12]
[1761495436837,3.7810935,198.34,198.29,2.85]
[1761495437146,2.68,198.33,198.28,2.12]
[1761495437349,2.68,198.32,198.28,2.12]
[1761495437653,2.68,198.31,198.28,2.12]
[1761495438350,2.68,198.29,198.28,2.12]
[1761495438544,6.4610935,198.29,198.28,2.12]
[1761495439250,2.68,198.32,198.28,4.97]
[1761495439453,6.45974273,198.32,198.28,4.97]
[1761495439943,2.68,198.29,198.28,2.12]
[1761495441343,7.2187,198.29,198.28,2.12]
[1761495441543,11.99844273,198.29,198.28,2.12]
[1761495442055,10.99844273,198.29,198.28,2.12]
[1761495443352,2.68,198.29,198.28,2.12]
[1761495443745,0.03176969,198.3,198.28,2.12]
[1761495444054,0.03176969,198.3,198.29,2.85]
[1761495444256,2.68,198.39,198.3,2.85]
[1761495444750,3.77625488,198.4,198.3,2.85]
[1761495444953,3.77625488,198.41,198.29,2.85]
[1761495445149,3.77625488,198.42,198.29,2.85]
[1761495445354,2.68,198.42,198.29,2.85]
[1761495445955,7.2159,198.42,198.32,4.5379]
[1761495446156,3.77625488,198.41,198.33,2.85]
[1761495446355,2.68,198.46,198.33,2.85]
[1761495446651,6.45913211,198.46,198.37,2.85]
[1761495446854,3.77913211,198.45,198.37,2.85]
[1761495447055,2.68,198.46,198.37,2.85]
[1761495447247,3.77913211,198.48,198.37,2.85]
[1761495447448,10.68747308,198.49,198.37,2.85]
[1761495447649,3.77913211,198.48,198.37,2.85]
[1761495447945,6.45913211,198.48,198.37,2.85]
[1761495448144,2.68,198.47,198.37,2.85]
[1761495448346,2.68,198.46,198.37,2.85]
[1761495448853,7.215,198.45,198.37,2.85]
[1761495449058,4.535,198.45,198.37,2.85]
[1761495449359,2.68,198.44,198.37,2.85]
[1761495449758,6.45578079,198.44,198.37,2.85]
[1761495450862,4.535,198.45,198.37,2.85]
[1761495451850,4.535,198.45,198.39,0.03593031]
[1761495456565,2.68,198.44,198.4,200.0]
[1761495457460,2.68,198.44,198.4,202.85]
[1761495457965,4.5346,198.47,198.41,2.85]
[1761495458160,2.68,198.53,198.41,2.85]
[1761495459466,2.68,198.53,198.45,0.03753994]
[1761495460062,4.5336,198.51,198.45,0.03753994]
[1761495462164,7.384,198.5,198.45,0.03753994]
[1761495462365,2.85,198.49,198.45,2.81753994]
[1761495462765,4.534,198.5,198.45,2.81753994]
[1761495462965,2.85,198.5,198.45,2.78]
[1761495463168,2.85,198.54,198.45,2.78]
[1761495463667,2.85,198.54,198.46,0.03369417]
[1761495463865,2.85,198.56,198.46,0.03369417]
[1761495464060,7.15802057,198.56,198.46,0.03369417]
[1761495464260,4.64113968,198.58,198.46,0.03369417]
[1761495464261,2.85,198.54,198.46,0.03369417]
[1761495464469,6.61081301,198.54,198.46,0.03369417]
[1761495464773,4.5336,198.52,198.45,2.78]
[1761495465470,2.85,198.51,198.48,0.03762853]
[1761495466081,2.85,198.49,198.48,0.03762853]
[1761495468774,4.534,198.5,198.48,0.03762853]
[1761495468977,2.85,198.49,198.48,0.03762853]
[1761495469380,2.85,198.49,198.41,2.78]
[1761495471074,4.5349,198.46,198.41,2.78]
[1761495471474,4.5349,198.46,198.42,2.12]
[1761495471670,4.5349,198.46,198.43,2.78]
[1761495472079,4.5351,198.45,198.43,2.78]
[1761495473680,7.3851,198.45,198.42,2.12]
[1761495474184,4.5354,198.44,198.42,2.12]
[1761495474486,4.5354,198.44,198.42,4.9]
[1761495474783,2.85,198.43,198.42,2.12]
[1761495480687,4.5354,198.44,198.42,4.9]
[1761495481092,0.03473823,198.46,198.43,2.78]
[1761495481298,0.03473823,198.46,198.45,2.78]
[1761495482293,0.03473823,198.46,198.45,64.4]
[1761495482493,4.56973823,198.46,198.44,61.62]
[1761495482697,7.29973823,198.46,198.44,61.62]
[1761495483197,4.56973823,198.46,198.44,61.62]
[1761495483987,0.03473823,198.46,198.42,4.79]
[1761495484191,2.76473823,198.46,198.42,2.12]
[1761495484397,2.76473823,198.46,198.42,63.74]
[1761495484597,7.2654,198.44,198.42,63.74]
[1761495484991,2.73,198.43,198.42,63.74]
[1761495485195,2.73,198.43,198.42,2.12]
[1761495487497,4.5354,198.44,198.42,2.12]
[1761495488592,4.5354,198.44,198.42,4.95]
[1761495488797,4.5354,198.44,198.42,63.72]
[1761495490394,6.61875631,198.43,198.42,63.72]
[1761495490593,6.61875631,198.43,198.42,61.6]
[1761495490795,2.85,198.41,198.4,204.53]
[1761495491195,6.61875631,198.41,198.4,204.53]
[1761495493703,3.76875631,198.41,198.4,204.53]
[1761495496699,6.61875631,198.41,198.4,204.53]
[1761495497405,3.76875631,198.41,198.4,204.53]
[1761495497599,6.61875631,198.41,198.4,196.42284515]
[1761495497803,10.93833454,198.41,198.4,153.71754515]
[1761495498005,10.93833454,198.41,198.4,126.03124515]
[1761495498207,6.61875631,198.41,198.4,116.97414515]
[1761495498405,10.93715779,198.41,198.4,116.97414515]
[1761495498607,11.93715779,198.41,198.4,116.97414515]
[1761495498806,11.93715779,198.41,198.4,107.68554515]
[1761495499408,10.93715779,198.41,198.4,60.66794515]
[1761495499903,15.57829747,198.41,198.4,44.23224515]
[1761495500106,3.76875631,198.41,198.4,44.23224515]
[1761495500802,4.5352,198.45,198.41,2.83]
[1761495500998,3.7589431,198.44,198.41,2.83]
[1761495501306,6.6089431,198.45,198.41,2.83]
[1761495501807,3.7589431,198.44,198.41,2.83]
[1761495502002,2.85,198.45,198.41,2.83]
[1761495502205,7.3854,198.44,198.4,44.23224515]
[1761495502399,3.7589431,198.43,198.4,44.23224515]
[1761495502704,4.5359,198.42,198.4,44.23224515]
[1761495502909,6.60790287,198.41,198.4,39.70224515]
[1761495503705,3.75790287,198.41,198.4,39.70224515]
[1761495504408,6.6073046,198.41,198.4,39.70224515]
[1761495504813,3.7573046,198.41,198.4,39.70224515]
[1761495505106,3.75801948,198.41,198.4,42.53224515]
[1761495505304,6.60803948,198.44,198.4,42.53224515]
[1761495505506,6.60803948,198.43,198.41,5.78]
[1761495505708,3.75803948,198.42,198.41,5.78]
[1761495506010,7.3856,198.43,198.41,5.78]
[1761495506211,3.75803948,198.42,198.41,5.78]
[1761495508910,6.60803948,198.42,198.41,5.78]
[1761495511712,3.75803948,198.42,198.41,5.78]
[1761495511913,3.75803948,198.42,198.41,8.61]
[1761495512320,3.75803948,198.45,198.42,2.83]
[1761495512717,8.07395506,198.45,198.42,2.83]
[1761495513809,8.07395506,198.45,198.43,2.13]
[1761495514621,3.75803948,198.45,198.43,2.13]
[1761495514916,3.75803948,198.45,198.44,2.83]
[1761495515118,0.03473823,198.46,198.44,2.83]
[1761495515520,3.79277771,198.46,198.44,2.83]
[1761495518113,8.11150409,198.46,198.44,2.83]
[1761495518314,3.75803948,198.45,198.44,2.83]
[1761495519524,8.11150409,198.46,198.44,2.83]
[1761495520430,3.75803948,198.45,198.43,4.76]
[1761495520626,8.11150409,198.46,198.43,4.76]
[1761495521319,6.55803948,198.45,198.43,2.13]
[1761495523824,3.75803948,198.45,198.43,2.13]
[1761495524227,6.55803948,198.45,198.43,2.13]
[1761495524419,3.75803948,198.44,198.43,2.13]
[1761495526429,15.41499685,198.44,198.43,2.13]
[1761495529426,8.07979685,198.44,198.43,4.76]
[1761495529727,3.75803948,198.44,198.43,4.76]
[1761495530524,3.75803948,198.44,198.43,9.2955]
[1761495530724,7.3341,198.5,198.44,2.63]
[1761495530923,7.12764338,198.49,198.44,2.63]
[1761495532827,4.32764338,198.49,198.44,2.63]
[1761495533123,4.32764338,198.51,198.44,2.63]
[1761495533525,4.32764338,198.51,198.45,4.5348]
[1761495533727,4.32764338,198.51,198.46,2.63]
[1761495534635,7.12764338,198.51,198.46,2.63]
[1761495534935,4.32764338,198.51,198.46,2.63]
[1761495535137,4.32764338,198.53,198.47,2.63]
[1761495535334,2.8,198.58,198.49,2.63]
[1761495535735,2.8,198.57,198.49,2.63]
[1761495536835,4.32543459,198.59,198.49,2.63]
[1761495537028,4.32543459,198.6,198.5,2.63]
[1761495538034,2.8,198.61,198.51,2.63]
[1761495538234,7.12543459,198.62,198.51,2.63]
[1761495538537,2.8,198.62,198.51,2.63]
[1761495539633,7.3313,198.62,198.51,2.63]
[1761495539937,4.5307,198.65,198.5,17.76]
[1761495540241,4.5307,198.65,198.52,2.63]
[1761495541033,4.5309,198.64,198.54,2.63]
[1761495541432,4.5309,198.64,198.55,2.13]
[1761495541632,4.5309,198.64,198.56,2.63]
[1761495542234,7.3301,198.67,198.56,2.63]
[1761495542439,7.3301,198.67,198.57,57.4]
[1761495542641,4.5301,198.67,198.58,2.69]
[1761495542833,2.6,198.71,198.58,2.69]
[1761495543334,2.6,198.67,198.58,2.69]
[1761495544336,4.5304,198.66,198.58,2.69]
[1761495545941,7.1306,198.65,198.58,2.69]
[1761495546329,4.5309,198.64,198.58,2.69]
[1761495546734,2.6,198.64,198.55,2.13]
[1761495547033,2.6,198.64,198.56,2.69]
[1761495547240,4.5311,198.63,198.56,2.69]
[1761495547634,2.6,198.64,198.56,2.69]
[1761495548032,4.5305,198.65,198.56,2.69]
[1761495549530,7.2305,198.65,198.56,2.69]
[1761495552647,7.2305,198.65,198.58,2.85]
[1761495555637,4.5305,198.65,198.58,2.85]
[1761495559244,4.5305,198.65,198.59,4.98]
[1761495559550,7.2305,198.65,198.59,4.98]
[1761495560756,2.7,198.63,198.59,4.98]
[1761495560957,2.7,198.63,198.59,2.13]
[1761495561351,2.7,198.62,198.59,2.13]
[1761495562658,2.7,198.62,198.59,4.98]
[1761495563255,7.2305,198.65,198.6,2.85]
[1761495564160,4.5305,198.65,198.6,2.85]
[1761495565262,7.2305,198.65,198.6,2.85]
[1761495567571,7.2297,198.69,198.6,2.85]
[1761495569060,7.2297,198.69,198.61,7.3812]
[1761495569260,7.2297,198.69,198.62,2.85]
[1761495569456,4.5299,198.68,198.62,2.85]
[1761495569960,7.2299,198.68,198.62,2.85]
[1761495570665,2.7,198.68,198.63,2.85]
[1761495570858,9.0566,198.75,198.63,2.85]
[1761495571064,2.7,198.69,198.63,2.85]
[1761495572067,7.2297,198.69,198.63,2.85]
[1761495574266,2.7,198.68,198.64,2.8848564]
[1761495575472,4.5297,198.69,198.64,2.8848564]
[1761495575766,2.7,198.68,198.64,2.8848564]
[1761495575961,6.36340315,198.68,198.64,2.8848564]
[1761495576269,2.7,198.68,198.64,2.8848564]
[1761495576664,6.36561053,198.68,198.64,2.8848564]
[1761495576862,2.7,198.68,198.64,2.8848564]
[1761495577564,6.36561053,198.68,198.64,2.8848564]
[1761495577771,2.7,198.67,198.64,2.8848564]
[1761495578369,2.7,198.67,198.64,0.0348564]
[1761495578565,6.36561053,198.67,198.64,0.0348564]
[1761495578766,2.68,198.66,198.64,0.0348564]
[1761495580271,3.66561053,198.66,198.64,0.0348564]
[1761495580474,2.68,198.69,198.64,2.8448564]
[1761495580674,6.34561053,198.68,198.64,2.8448564]
[1761495580973,3.66561053,198.67,198.64,2.8448564]
[1761495581175,3.66561053,198.66,198.64,2.8448564]
[1761495581369,3.66561053,198.65,198.64,2.8448564]
[1761495581575,6.34561053,198.68,198.64,2.8448564]
[1761495581775,3.66561053,198.67,198.64,2.8448564]
[1761495581968,3.66561053,198.66,198.64,2.8448564]
[1761495582170,3.66561053,198.65,198.64,2.8448564]
[1761495582370,2.68,198.66,198.64,0.0348564]
[1761495582571,6.34561053,198.65,198.64,0.0348564]
[1761495582765,2.68,198.67,198.64,0.0348564]
[1761495582970,3.66561053,198.66,198.65,2.13]
[1761495583365,6.34561053,198.66,198.65,2.13]
[1761495584872,10.62411008,198.66,198.65,2.13]
[1761495585674,6.34561053,198.66,198.65,2.13]
[1761495586276,10.62411008,198.66,198.65,2.13]
[1761495586677,4.5304,198.65,198.64,0.0348564]
[1761495586876,2.68,198.64,198.53,97.95215534]
[1761495587069,2.68,198.62,198.53,97.95215534]
[1761495587273,6.34561053,198.61,198.53,97.95215534]
[1761495587470,3.66561053,198.6,198.54,2.81]
[1761495587780,6.34561053,198.59,198.54,2.81]
[1761495587982,3.66561053,198.58,198.55,2.81]
[1761495588183,2.68,198.62,198.55,2.81]
[1761495588577,3.68286372,198.61,198.55,2.81]
[1761495588777,0.03331654,198.58,198.55,2.81]
[1761495590078,0.03331654,198.58,198.57,2.81]
[1761495592177,7.96822255,198.64,198.59,2.81]
[1761495592386,10.64822255,198.64,198.59,2.81]
[1761495592686,3.68286372,198.63,198.59,2.81]
[1761495592887,2.68,198.63,198.59,2.81]
[1761495593084,6.36286372,198.63,198.59,2.81]
[1761495593285,2.68,198.62,198.58,7.342]
[1761495594884,2.68,198.62,198.58,4.532]
[1761495595086,2.68,198.62,198.59,2.81]
[1761495597582,3.68251433,198.64,198.6,2.81]
[1761495597889,2.68,198.66,198.6,2.81]
[1761495598088,6.36303124,198.66,198.6,2.81]
[1761495598288,6.36303124,198.65,198.6,2.81]
[1761495598489,2.68,198.65,198.6,2.81]
[1761495599890,2.68,198.65,198.6,7.3414]
[1761495600388,2.68,198.64,198.6,7.3414]
[1761495600990,2.68,198.63,198.6,4.5314]
[1761495601191,2.68,198.63,198.56,2.81]
[1761495601394,2.68,198.63,198.56,64.25]
[1761495601595,2.68,198.62,198.56,64.25]
[1761495602093,2.68,198.62,198.56,68.7823]
[1761495602487,6.36302865,198.62,198.56,68.7823]
[1761495603694,6.36302865,198.62,198.56,7.3423]
[1761495603987,2.74,198.61,198.55,61.44]
[1761495604196,2.74,198.6,198.55,61.44]
[1761495604396,2.74,198.6,198.55,64.02]
[1761495605188,2.74,198.6,198.56,2.58]
[1761495609598,3.68302865,198.61,198.56,2.58]
[1761495609990,4.2721417,198.63,198.56,2.58]
[1761495610190,7.95517035,198.63,198.56,2.58]
[1761495610593,6.51302865,198.63,198.56,2.58]
[1761495610795,3.68302865,198.62,198.56,2.58]
[1761495610996,2.83,198.61,198.57,7.2721]
[1761495614103,2.83,198.61,198.58,2.74]
[1761495614605,3.68302865,198.63,198.58,2.74]
[1761495614606,6.51302865,198.63,198.59,2.74]
[1761495614807,3.68302865,198.62,198.59,2.74]
[1761495615010,7.95445425,198.65,198.59,2.74]
[1761495615305,10.78445425,198.65,198.61,2.74]
[1761495615605,3.68302865,198.64,198.61,2.74]
[1761495615804,6.51302865,198.65,198.61,2.74]
[1761495616704,3.67595395,198.64,198.61,2.74]
[1761495616896,6.50595395,198.65,198.61,2.74]
[1761495617601,3.67595395,198.65,198.61,2.74]
[1761495617907,3.67663756,198.67,198.61,2.74]
[1761495618102,3.67663756,198.67,198.64,2.74]
[1761495618310,3.67663756,198.7,198.64,2.74]
[1761495618608,3.67663756,198.69,198.64,2.74]
[1761495618802,2.83,198.69,198.65,61.44]
[1761495619003,2.83,198.68,198.64,61.44]
[1761495619205,2.83,198.67,198.64,61.44]
[1761495619403,6.50663756,198.67,198.64,61.44]
[1761495619609,2.83,198.67,198.64,61.44]
[1761495620900,2.83,198.67,198.62,7.2709]
[1761495621107,3.67712961,198.7,198.64,2.74]
[1761495621309,6.50712961,198.69,198.64,2.74]
[1761495621509,2.83,198.68,198.63,65.9507]
[1761495621711,2.83,198.67,198.63,68.6907]
[1761495621906,2.83,198.67,198.6,2.74]
[1761495622107,2.83,198.67,198.61,61.42]
[1761495622309,2.83,198.66,198.61,61.42]
[1761495622509,2.83,198.65,198.61,61.42]
[1761495622711,6.50712961,198.65,198.61,64.16]
[1761495622910,3.67712961,198.64,198.61,64.16]
[1761495623112,2.83,198.65,198.61,64.16]
[1761495623807,2.83,198.64,198.61,64.16]
[1761495626609,6.50712961,198.64,198.61,64.16]
[1761495626810,2.83,198.64,198.61,64.16]
[1761495627012,2.83,198.64,198.61,61.42]
[1761495627514,4.65536592,198.68,198.61,61.42]
[1761495627515,2.83,198.63,198.61,61.42]
[1761495628208,2.83,198.62,198.61,61.42]
[1761495629003,6.50858805,198.62,198.61,61.42]
[1761495629206,2.83,198.62,198.61,61.42]
[1761495629704,6.50858805,198.62,198.61,61.42]
[1761495630112,2.83,198.62,198.61,61.42]
[1761495630716,6.50858805,198.62,198.61,61.42]
[1761495630920,2.83,198.62,198.61,61.42]
[1761495631423,6.50858805,198.62,198.61,61.42]
[1761495632212,2.83,198.62,198.61,61.42]
[1761495632612,6.50858805,198.62,198.61,61.42]
[1761495632817,6.50943153,198.62,198.61,61.42]
[1761495633018,2.83,198.62,198.61,61.42]
[1761495633418,6.50943153,198.62,198.61,61.42]
[1761495633608,2.83,198.62,198.61,61.42]
[1761495634009,6.50943153,198.62,198.61,61.42]
[1761495634219,2.83,198.62,198.61,61.42]
[1761495634619,6.50943153,198.62,198.61,61.42]
[1761495634921,2.83,198.62,198.61,61.42]
[1761495635326,6.50943153,198.62,198.61,61.42]
[1761495635522,2.83,198.62,198.61,61.42]
[1761495635924,10.78660511,198.62,198.61,61.42]
[1761495636131,6.50943153,198.62,198.61,61.42]
[1761495636327,10.78656423,198.62,198.61,61.42]
[1761495636521,6.50943153,198.62,198.61,61.42]
[1761495636823,2.83,198.62,198.61,61.42]
[1761495637222,6.50943153,198.62,198.61,61.42]
[1761495637413,2.83,198.62,198.61,61.42]
[1761495637818,6.50943153,198.62,198.61,61.42]
[1761495638225,2.83,198.62,198.61,61.42]
[1761495638628,6.50943153,198.62,198.61,61.42]
[1761495639021,2.83,198.62,198.61,61.42]
[1761495639326,6.50943153,198.62,198.61,61.42]
[1761495639620,3.67943153,198.63,198.61,61.42]
[1761495639826,3.67943153,198.62,198.61,61.42]
[1761495640027,7.9563021,198.63,198.61,61.42]
[1761495640327,3.67943153,198.62,198.61,61.42]
[1761495641825,7.9563021,198.63,198.61,61.42]
[1761495642021,7.9563021,198.63,198.61,64.14]
[1761495642228,6.33943153,198.63,198.61,64.14]
[1761495642428,10.61620885,198.63,198.61,64.14]
[1761495642731,3.67943153,198.62,198.61,64.14]
[1761495643028,7.95620885,198.63,198.61,64.14]
[1761495643930,7.95620885,198.63,198.62,2.72]
[1761495644830,7.95620885,198.63,198.61,64.14]
[1761495645028,10.61620885,198.63,198.61,61.42]
[1761495645231,3.67943153,198.62,198.61,61.42]
[1761495645431,6.33943153,198.62,198.59,64.14]
[1761495645827,6.33943153,198.62,198.6,2.72]
[1761495648926,3.67943153,198.62,198.6,2.72]
[1761495649736,6.33943153,198.61,198.59,64.14]
[1761495650032,8.80777732,198.63,198.59,64.14]
[1761495650033,3.67943153,198.6,198.59,64.14]
[1761495650233,3.67943153,198.61,198.59,64.14]
[1761495650431,3.67943153,198.61,198.6,2.72]
[1761495651329,3.67943153,198.61,198.59,64.14]
[1761495652132,3.67943153,198.61,198.6,2.72]
[1761495653227,10.61749183,198.64,198.6,2.72]
[1761495653534,6.33943153,198.63,198.6,2.72]
[1761495653737,3.67943153,198.62,198.6,2.72]
[1761495655426,3.67943153,198.63,198.6,2.72]
[1761495656536,3.67943153,198.63,198.61,2.72]
[1761495656935,4.65999434,198.66,198.61,2.72]
[1761495656936,3.67943153,198.65,198.61,2.72]
[1761495657136,3.67943153,198.64,198.61,2.72]
[1761495657328,3.67943153,198.65,198.61,2.72]
[1761495657528,3.67943153,198.64,198.61,2.72]
[1761495657729,3.67943153,198.65,198.61,2.72]
[1761495657933,3.67943153,198.64,198.61,2.72]
[1761495658235,3.67943153,198.63,198.61,2.72]
[1761495658428,6.33943153,198.65,198.61,2.72]
[1761495658636,3.67943153,198.64,198.61,2.72]
[1761495659942,3.67943153,198.65,198.61,2.72]
[1761495660141,3.67943153,198.64,198.61,2.72]
[1761495660338,3.67943153,198.65,198.61,2.72]
[1761495660542,3.67943153,198.64,198.61,2.72]
[1761495660738,3.67943153,198.65,198.63,4.5308]
[1761495660943,4.65999434,198.68,198.64,2.72]
[1761495661157,3.68134786,198.67,198.64,2.72]
[1761495661350,3.68134786,198.68,198.64,2.72]
[1761495661538,3.68134786,198.67,198.64,2.72]
[1761495661735,3.68134786,198.68,198.64,2.72]
[1761495661939,3.68134786,198.67,198.64,2.72]
[1761495662140,3.68134786,198.68,198.65,2.72]
[1761495662438,3.67453991,198.67,198.65,2.72]
[1761495662640,3.67453991,198.68,198.65,2.72]
[1761495663344,3.67453991,198.69,198.65,2.72]